bitfinex/quotes_SOLUSD_20251208
["timestamp","ask_amount","ask_price","bid_price","bid_amount"]
[1765236438523,7.53579502,132.7,132.69,8.26]
[1765236439224,8.80994492,132.69,132.66,8.26]
[1765236439397,18.64646653,132.69,132.64,17.38652161]
[1765236439925,8.80994492,132.67,132.64,8.92]
[1765236440123,8.80994492,132.67,132.64,8.26]
[1765236440323,9.51994492,132.67,132.64,8.26]
[1765236440917,7.53806723,132.66,132.64,8.26]
[1765236441440,8.22806723,132.66,132.64,8.26]
[1765236442032,18.62646653,132.65,132.59,0.71]
[1765236442210,18.62646653,132.65,132.6,8.26]
[1765236442530,26.38323532,132.66,132.57,18.19652161]
[1765236442531,17.93646653,132.63,132.57,18.19652161]
[1765236442900,16.35085435,132.61,132.57,18.19652161]
[1765236443407,16.35085435,132.61,132.57,17.48652161]
[1765236443723,19.54101399,132.62,132.58,9.83652161]
[1765236443724,7.54049171,132.62,132.58,9.83652161]
[1765236443927,7.54049171,132.62,132.59,0.71]
[1765236445100,8.80994492,132.62,132.59,0.71]
[1765236446125,7.54090943,132.61,132.59,0.71]
[1765236447132,7.54090943,132.61,132.59,9.83652161]
[1765236447319,7.54052259,132.62,132.6,9.12652161]
[1765236447510,7.54052259,132.62,132.6,18.09652161]
[1765236447710,7.54052259,132.62,132.61,0.71]
[1765236448027,7.54052259,132.62,132.6,8.26]
[1765236448218,8.23052259,132.62,132.6,8.26]
[1765236448422,7.53977229,132.63,132.6,8.26]
[1765236448640,8.22977229,132.63,132.6,8.26]
[1765236450832,7.53977229,132.63,132.6,8.97]
[1765236451335,8.22977229,132.63,132.6,8.26]
[1765236451740,8.22977229,132.63,132.6,8.97]
[1765236455326,7.53977229,132.63,132.61,9.83652161]
[1765236455532,7.53977229,132.63,132.6,18.09652161]
[1765236457341,7.53977229,132.63,132.61,0.71]
[1765236457816,9.49994492,132.62,132.6,8.26]
[1765236458455,7.53977229,132.63,132.61,0.71]
[1765236458618,7.53977229,132.63,132.6,18.09652161]
[1765236458818,8.22977229,132.63,132.6,8.26]
[1765236459145,8.22977229,132.63,132.6,8.97]
[1765236459719,0.69,132.68,132.62,9.12652161]
[1765236459918,0.69,132.68,132.63,8.26]
[1765236459919,7.53749905,132.67,132.63,8.26]
[1765236460150,8.80994492,132.66,132.63,8.97]
[1765236460440,26.38124669,132.67,132.64,9.83652161]
[1765236460441,7.53749905,132.67,132.64,9.83652161]
[1765236460952,7.53749905,132.67,132.63,8.26]
[1765236460953,9.49994492,132.66,132.63,8.26]
[1765236461315,0.69,132.65,132.62,8.26]
[1765236461521,8.80994492,132.64,132.62,8.26]
[1765236461736,7.53977229,132.63,132.6,8.97]
[1765236462049,8.22977229,132.63,132.6,8.97]
[1765236462840,7.53977229,132.63,132.6,8.97]
[1765236463019,8.22977229,132.63,132.6,8.97]
[1765236463637,8.22977229,132.63,132.57,0.1]
[1765236463638,13.32327303,132.62,132.57,0.1]
[1765236463836,7.53977229,132.63,132.6,3.82332811]
[1765236464142,7.53977229,132.63,132.61,3.82332811]
[1765236464541,7.53977229,132.63,132.61,4.53332811]
[1765236464720,7.53977229,132.63,132.61,9.83655567]
[1765236464918,16.34930838,132.64,132.61,9.83655567]
[1765236465119,0.69,132.64,132.61,8.26]
[1765236465322,9.49994492,132.63,132.61,8.26]
[1765236465938,9.49994492,132.62,132.61,8.26]
[1765236466151,8.80994492,132.61,132.57,0.1]
[1765236466341,9.49994492,132.61,132.57,9.07]
[1765236466541,17.93650059,132.61,132.57,8.36]
[1765236466740,8.80994492,132.59,132.57,8.36]
[1765236467143,16.35236171,132.59,132.57,8.36]
[1765236467458,7.54241679,132.59,132.57,9.07]
[1765236467856,16.35159492,132.6,132.57,9.07]
[1765236468855,7.54077798,132.62,132.58,9.83655567]
[1765236469035,7.54077798,132.62,132.59,0.71]
[1765236469372,7.54077798,132.62,132.59,9.83655567]
[1765236469848,3.7,132.61,132.59,9.83655567]
[1765236470233,11.24113326,132.61,132.58,9.12655567]
[1765236470456,11.93113326,132.61,132.57,18.19655567]
[1765236470765,11.24113326,132.61,132.58,0.71]
[1765236472058,11.24113326,132.61,132.57,70.46]
[1765236472059,8.80994492,132.6,132.57,70.46]
[1765236472265,9.51994492,132.6,132.57,70.46]
[1765236473161,7.54204691,132.59,132.57,70.46]
[1765236473483,7.54204691,132.59,132.57,9.02]
[1765236473765,16.35159326,132.6,132.58,9.78655567]
[1765236473962,8.97,132.64,132.59,9.12655567]
[1765236473963,0.71,132.64,132.59,9.12655567]
[1765236474158,16.34989566,132.63,132.59,9.78655567]
[1765236474559,17.05989566,132.63,132.59,9.78655567]
[1765236475469,17.05989566,132.63,132.59,0.66]
[1765236476041,0.71,132.62,132.57,25.68956368]
[1765236476344,0.71,132.62,132.58,0.66]
[1765236477447,8.25088169,132.62,132.58,6.48771974]
[1765236478243,7.54088169,132.62,132.58,14.03019632]
[1765236478444,16.34993228,132.63,132.59,6.48771974]
[1765236478648,17.05993228,132.63,132.59,6.48771974]
[1765236479672,17.05993228,132.63,132.59,68.58771974]
[1765236479968,0.7,132.62,132.59,68.58771974]
[1765236480264,0.7,132.62,132.59,62.76]
[1765236480469,1.41,132.62,132.59,62.76]
[1765236480768,9.51994492,132.61,132.58,62.1]
[1765236480967,9.51994492,132.61,132.57,9.02]
[1765236481168,9.51994492,132.61,132.58,0.67]
[1765236481341,16.35097943,132.61,132.58,0.67]
[1765236484475,7.54103451,132.61,132.58,6.49771974]
[1765236484649,0.7,132.62,132.59,5.82771974]
[1765236484975,35.87914795,132.63,132.59,0.67]
[1765236486460,0.68,132.62,132.57,71.13]
[1765236486661,26.38920303,132.63,132.58,2.44807395]
[1765236486869,7.53943598,132.64,132.59,0.67]
[1765236487069,7.53943598,132.64,132.6,10.70807395]
[1765236487273,8.21943598,132.64,132.6,2.44807395]
[1765236487475,8.21943598,132.64,132.61,8.26]
[1765236487676,0.68,132.63,132.61,8.26]
[1765236487969,7.53943598,132.64,132.61,8.26]
[1765236488152,18.84717014,132.65,132.61,8.26]
[1765236488153,7.53877947,132.65,132.63,2.44807395]
[1765236488349,7.53877947,132.65,132.62,3.11807395]
[1765236488574,0.68,132.69,132.62,0.67]
[1765236488757,27.05329514,132.71,132.66,2.44807395]
[1765236489069,7.53483544,132.72,132.7,2.44807395]
[1765236489256,7.53483544,132.72,132.7,8.26]
[1765236489454,7.53483544,132.72,132.7,8.93]
[1765236489875,7.53352418,132.74,132.71,0.67]
[1765236490060,27.04733463,132.74,132.71,0.67]
[1765236490870,18.83381045,132.74,132.71,0.67]
[1765236492169,26.36733463,132.74,132.71,0.67]
[1765236492873,8.80994492,132.71,132.67,0.67]
[1765236493062,11.25801887,132.71,132.67,8.93]
[1765236493264,9.48994492,132.71,132.67,8.93]
[1765236493773,2.44807395,132.68,132.64,0.67]
[1765236494076,2.44807395,132.68,132.65,8.26]
[1765236494275,8.21749905,132.67,132.65,8.26]
[1765236494575,10.665573,132.67,132.65,8.26]
[1765236494771,14.04108665,132.67,132.65,8.26]
[1765236495357,7.53749905,132.67,132.65,8.26]
[1765236495766,13.36108665,132.67,132.65,8.26]
[1765236496452,7.53749905,132.67,132.65,8.26]
[1765236496870,14.23749905,132.67,132.65,8.26]
[1765236497653,14.91749905,132.67,132.65,8.26]
[1765236498054,20.74108665,132.67,132.65,8.26]
[1765236498969,14.23749905,132.67,132.65,8.26]
[1765236499182,14.23749905,132.67,132.65,8.93]
[1765236500659,15.31353252,132.66,132.6,6.4935876]
[1765236500864,5.8235876,132.65,132.61,8.93]
[1765236501061,7.53920386,132.64,132.61,8.93]
[1765236501384,7.53920386,132.64,132.62,0.67]
[1765236501565,7.53875109,132.65,132.62,0.67]
[1765236503079,16.348116,132.66,132.62,6.4935876]
[1765236503485,16.348116,132.66,132.63,0.72]
[1765236503867,7.53817108,132.66,132.63,0.72]
[1765236504058,7.53817108,132.66,132.64,8.26]
[1765236504472,7.53817108,132.66,132.64,8.98]
[1765236505083,26.38124669,132.67,132.64,8.98]
[1765236506871,19.52374764,132.67,132.64,8.98]
[1765236507471,18.84374764,132.67,132.65,0.72]
[1765236507667,16.34644554,132.69,132.65,6.5435876]
[1765236507861,14.63353252,132.68,132.65,0.72]
[1765236508064,15.31353252,132.68,132.65,8.98]
[1765236508499,16.01353252,132.68,132.65,8.98]
[1765236509202,7.53749905,132.67,132.65,8.98]
[1765236511701,7.53749905,132.67,132.66,0.72]
[1765236512771,16.34694361,132.68,132.66,0.72]
[1765236513597,16.34694361,132.68,132.65,8.26]
[1765236513776,16.34694361,132.68,132.65,8.98]
[1765236514698,16.34694361,132.68,132.65,8.26]
[1765236514901,22.85053121,132.68,132.65,8.26]
[1765236515280,0.68,132.67,132.65,8.26]
[1765236515596,6.5035876,132.67,132.63,0.72]
[1765236515793,7.53806723,132.66,132.64,8.26]
[1765236516375,7.53806723,132.66,132.64,8.98]
[1765236517694,7.53806723,132.66,132.64,8.26]
[1765236517891,63.76736251,132.72,132.65,0.72]
[1765236517892,8.80994492,132.69,132.65,0.72]
[1765236518285,11.93569157,132.69,132.65,0.72]
[1765236518699,3.12574665,132.68,132.64,8.26]
[1765236518904,2.44574665,132.67,132.64,8.26]
[1765236519079,3.12574665,132.67,132.64,8.26]
[1765236519282,11.93569157,132.66,132.64,8.26]
[1765236519496,7.53920386,132.64,132.62,8.26]
[1765236519898,10.66495051,132.64,132.62,8.26]
[1765236520207,3.12574665,132.63,132.62,8.26]
[1765236520506,11.93569157,132.63,132.62,8.26]
[1765236520801,11.25569157,132.63,132.62,8.26]
[1765236521103,8.80994492,132.63,132.62,8.26]
[1765236521295,8.23920386,132.64,132.62,8.26]
[1765236521601,11.36495051,132.64,132.62,8.26]
[1765236522795,10.68495051,132.64,132.62,8.26]
[1765236523309,8.23920386,132.64,132.62,8.26]
[1765236523613,8.91920386,132.64,132.62,8.26]
[1765236525109,11.36495051,132.64,132.62,8.26]
[1765236525784,10.68495051,132.64,132.62,8.26]
[1765236526290,11.36495051,132.64,132.62,8.26]
[1765236527197,8.23920386,132.64,132.62,8.98]
[1765236527393,0.7,132.64,132.62,8.26]
[1765236527598,8.21931363,132.64,132.62,8.26]
[1765236527781,10.66506028,132.64,132.62,8.26]
[1765236529303,10.66506028,132.64,132.6,8.26131878]
[1765236529507,8.21931363,132.64,132.61,8.98]
[1765236529690,7.53931363,132.64,132.61,8.98]
[1765236529890,7.53931363,132.64,132.62,0.72]
[1765236530089,28.33576309,132.66,132.62,0.72]
[1765236530423,7.5386355,132.65,132.62,0.72]
[1765236531616,8.2586355,132.65,132.62,0.72]
[1765236532115,7.5386355,132.65,132.62,0.72]
[1765236533189,7.5386355,132.65,132.62,65.26574665]
[1765236533603,7.5386355,132.65,132.62,65.23574665]
[1765236533801,7.53829399,132.66,132.63,3.13574665]
[1765236534009,7.53829399,132.66,132.63,0.69]
[1765236534498,8.25829399,132.66,132.63,0.69]
[1765236535015,7.53829399,132.66,132.63,0.69]
[1765236535191,7.53829399,132.66,132.63,3.13574665]
[1765236535598,7.53829399,132.66,132.64,8.26]
[1765236537391,8.80994492,132.66,132.64,8.26]
[1765236538313,7.53522718,132.71,132.65,3.13574665]
[1765236538504,0.72,132.75,132.7,2.44574665]
[1765236538703,0.72,132.75,132.71,12.0765726]
[1765236539209,8.80994492,132.74,132.71,12.7665726]
[1765236539411,7.53352418,132.74,132.71,8.26]
[1765236539612,8.80994492,132.72,132.69,0.69]
[1765236539814,12.62651752,132.72,132.69,8.26]
[1765236540006,13.34651752,132.72,132.69,8.26]
[1765236540612,9.52994492,132.72,132.69,8.95]
[1765236541424,8.80994492,132.7,132.66,0.67]
[1765236541606,8.80994492,132.7,132.67,8.26]
[1765236541807,12.62651752,132.7,132.67,8.26]
[1765236542008,12.62651752,132.7,132.67,8.93]
[1765236542722,7.53636295,132.69,132.67,8.93]
[1765236544523,7.53593277,132.7,132.68,0.67]
[1765236546727,30.85986774,132.71,132.67,8.26]
[1765236546921,30.85986774,132.71,132.67,8.93]
[1765236547405,3.8165726,132.69,132.63,16.308864]
[1765236547604,3.8165726,132.66,132.63,0.67]
[1765236547811,3.8165726,132.65,132.63,0.67]
[1765236548414,3.8165726,132.66,132.63,0.67]
[1765236548731,7.53849509,132.66,132.63,0.67]
[1765236549031,11.35506769,132.66,132.63,0.67]
[1765236549332,12.02506769,132.66,132.63,0.67]
[1765236549825,12.02506769,132.66,132.62,8.26]
[1765236550035,11.35556825,132.65,132.62,8.93]
[1765236550323,7.53899565,132.65,132.63,0.67]
[1765236551230,8.80994492,132.67,132.63,0.67]
[1765236552620,16.34764998,132.67,132.63,0.67]
[1765236553540,7.53770506,132.67,132.63,0.67]
[1765236553759,7.53770506,132.67,132.63,12.02628178]
[1765236553914,7.53770506,132.67,132.64,3.8165726]
[1765236554116,9.47994492,132.74,132.64,3.8165726]
[1765236554117,0.67,132.75,132.68,16.308864]
[1765236554332,0.67,132.75,132.7,3.8165726]
[1765236554515,3.8165726,132.73,132.7,8.26]
[1765236555042,7.53579502,132.7,132.67,8.93]
[1765236556940,3.8165726,132.7,132.67,8.93]
[1765236557442,11.35179978,132.71,132.67,8.93]
[1765236557632,12.02179978,132.71,132.67,8.93]
[1765236558817,12.62651752,132.71,132.68,0.67]
[1765236559640,12.62651752,132.71,132.67,8.26]
[1765236559641,4.4865726,132.7,132.67,8.26]
[1765236560418,7.53636295,132.69,132.67,8.26]
[1765236562032,11.35293555,132.69,132.67,8.26]
[1765236562234,4.4765726,132.68,132.67,8.26]
[1765236563653,3.8165726,132.68,132.67,8.26]
[1765236564147,7.53636295,132.69,132.67,8.94]
[1765236564353,7.53569966,132.71,132.68,0.68]
[1765236564650,11.35227226,132.71,132.68,0.68]
[1765236565428,4.4765726,132.7,132.67,8.26]
[1765236565642,3.8165726,132.69,132.67,8.26]
[1765236566229,11.35327443,132.69,132.67,8.26]
[1765236566622,7.53670183,132.69,132.67,8.26]
[1765236567045,11.35257059,132.7,132.68,0.68]
[1765236567244,7.53599799,132.7,132.68,0.68]
[1765236567451,11.35257059,132.7,132.67,8.94]
[1765236568337,11.35257059,132.7,132.67,8.26]
[1765236568545,11.35257059,132.7,132.67,8.94]
[1765236568724,3.8165726,132.69,132.67,70.36]
[1765236568928,3.8165726,132.68,132.67,8.26]
[1765236569153,13.28651752,132.68,132.67,8.26]
[1765236569351,8.80994492,132.67,132.63,0.68]
[1765236569645,3.8165726,132.65,132.63,8.26]
[1765236570158,4.4765726,132.65,132.63,8.26]
[1765236570455,11.35540548,132.65,132.63,8.26]
[1765236571033,12.01540548,132.65,132.63,8.26]
[1765236572053,11.35463983,132.66,132.63,8.26]
[1765236572253,11.35463983,132.66,132.63,8.94]
[1765236572431,12.01463983,132.66,132.63,8.94]
[1765236572629,3.8165726,132.65,132.63,8.94]
[1765236573033,4.4765726,132.65,132.63,8.26]
[1765236573455,7.53806723,132.66,132.64,0.68]
[1765236576233,7.53770369,132.67,132.64,0.68]
[1765236576429,7.53706531,132.68,132.64,8.21908083]
[1765236576649,7.53706531,132.68,132.65,0.68]
[1765236577252,11.35363791,132.68,132.65,0.68]
[1765236578747,11.35363791,132.68,132.66,8.26]
[1765236579255,11.35363791,132.68,132.66,8.94]
[1765236579459,7.53706531,132.68,132.66,8.26]
[1765236579758,11.35363791,132.68,132.66,8.94]
[1765236581652,7.53706531,132.68,132.67,0.68]
[1765236584180,7.53654928,132.69,132.67,0.68]
[1765236585379,7.53595286,132.7,132.67,0.68]
[1765236588162,7.53595286,132.7,132.67,8.21748555]
[1765236588564,7.53595286,132.7,132.68,0.68]
[1765236588752,4.4765726,132.69,132.66,70.36]
[1765236588952,7.53595286,132.7,132.66,70.36]
[1765236589152,7.53595286,132.7,132.67,0.68]
[1765236589452,7.53544618,132.71,132.67,74.13400149]
[1765236589964,7.53544618,132.71,132.68,0.68]
[1765236590165,7.53544618,132.71,132.69,8.26]
[1765236590566,7.53544618,132.71,132.69,8.94]
[1765236591068,7.53295668,132.75,132.7,4.4965726]
[1765236591250,7.53295668,132.75,132.71,3.8165726]
[1765236591579,7.53295668,132.75,132.72,8.26]
[1765236591779,7.53295668,132.75,132.72,8.98]
[1765236592074,7.53295668,132.75,132.73,0.72]
[1765236593263,7.53241712,132.76,132.73,0.72]
[1765236593465,16.508864,132.79,132.73,0.72]
[1765236593466,19.74725903,132.79,132.74,3.8165726]
[1765236593677,0.92,132.79,132.75,8.26]
[1765236593877,0.92,132.79,132.76,0.72]
[1765236594573,0.2,132.79,132.76,0.72]
[1765236594777,7.73082573,132.79,132.76,0.72]
[1765236595590,7.73082573,132.79,132.76,4.5365726]
[1765236595786,4.5365726,132.78,132.76,8.26]
[1765236596649,7.53182194,132.77,132.76,8.26]
[1765236597050,11.34839454,132.77,132.76,8.26]
[1765236597448,7.53182194,132.77,132.76,8.26]
[1765236599974,7.53182194,132.77,132.75,62.1]
[1765236599975,8.80994492,132.76,132.75,62.1]
[1765236600175,16.34176686,132.77,132.75,8.26]
[1765236600391,7.53182194,132.77,132.75,8.26]
[1765236600557,7.7311644,132.79,132.76,3.16184807]
[1765236600965,7.7311644,132.79,132.77,3.16184807]
[1765236601277,7.7311644,132.79,132.78,8.26]
[1765236602384,0.2,132.79,132.78,11.42184807]
[1765236603265,0.2,132.79,132.78,18.95310277]
[1765236603469,0.2,132.79,132.78,11.42184807]
[1765236604065,7.73068755,132.79,132.78,8.26]
[1765236604453,0.2,132.79,132.78,8.98]
[1765236608864,0.2,132.79,132.78,11.42184807]
[1765236609271,0.2,132.79,132.78,35.26196677]
[1765236610489,0.2,132.79,132.78,8.98]
[1765236610861,0.2,132.79,132.77,16.308864]
[1765236611067,0.2,132.79,132.78,8.26]
[1765236611068,3.31184807,132.79,132.78,8.26]
[1765236611373,19.65252054,132.79,132.78,8.26]
[1765236611765,7.73072755,132.79,132.78,8.26]
[1765236612575,8.40072755,132.79,132.78,8.26]
[1765236613566,23.02293932,132.79,132.78,8.26]
[1765236615004,17.21067247,132.79,132.78,8.26]
[1765236615173,7.73072755,132.79,132.78,8.26]
[1765236616415,0.2,132.79,132.78,8.26]
[1765236618094,7.73068755,132.79,132.78,8.26]
[1765236618291,0.2,132.79,132.78,8.26]
[1765236618491,0.2,132.79,132.78,14.76226685]
[1765236619499,0.2,132.79,132.78,8.26]
[1765236620096,0.2,132.79,132.78,14.76226685]
[1765236620300,0.2,132.79,132.78,22.29352155]
[1765236620897,0.2,132.82,132.78,22.29352155]
[1765236620898,0.2,132.82,132.78,38.60238555]
[1765236621104,0.2,132.82,132.81,22.12113085]
[1765236621400,0.2,132.82,132.81,31.06113085]
[1765236621990,0.2,132.82,132.81,38.59068434]
[1765236622315,0.2,132.82,132.81,39.34363968]
[1765236622817,0.2,132.84,132.81,58.16752342]
[1765236622986,0.2,132.84,132.83,5.81226685]
[1765236623411,0.2,132.84,132.83,6.51226685]
[1765236624190,0.2,132.84,132.83,14.04068663]
[1765236625124,0.2,132.88,132.84,0.7]
[1765236625304,0.2,132.91,132.87,27.9333977]
[1765236625493,0.2,132.91,132.9,22.12113085]
[1765236625997,0.2,132.91,132.9,22.82113085]
[1765236626303,0.2,132.91,132.9,30.34558532]
[1765236627997,0.2,132.93,132.91,8.80994492]
[1765236628195,0.2,132.93,132.92,31.06113085]
[1765236628414,0.2,132.93,132.92,38.58445314]
[1765236629032,0.2,132.93,132.92,22.27558914]
[1765236629227,0.2,132.96,132.95,16.308864]
[1765236629425,0.2,132.96,132.95,24.548864]
[1765236629611,0.2,132.96,132.95,25.248864]
[1765236630016,0.2,132.96,132.95,31.06113085]
[1765236630226,0.2,132.96,132.95,36.8733977]
[1765236630432,0.2,132.98,132.95,44.39502237]
[1765236630600,0.2,132.98,132.97,5.81226685]
[1765236630795,0.2,132.98,132.97,172.11226685]
[1765236631009,0.2,132.98,132.97,189.12113085]
[1765236632012,0.2,132.98,132.97,197.36113085]
[1765236632415,0.2,132.98,132.97,204.88162419]
[1765236632614,0.2,132.99,132.97,188.57276019]
[1765236632814,0.2,132.99,132.98,22.82113085]
[1765236633126,0.66,133.05,132.98,22.82113085]
[1765236633337,0.66,133.05,133.03,5.81226685]
[1765236633518,8.17610548,133.05,133.04,8.24]
[1765236634225,0.66,133.06,133.04,8.24]
[1765236634908,0.2,133.07,133.04,14.05226685]
[1765236635112,0.86,133.07,133.05,8.24]
[1765236635416,0.2,133.07,133.06,6.51226685]
[1765236636102,0.2,133.13,133.09,16.308864]
[1765236636335,0.2,133.13,133.12,5.81226685]
[1765236636834,0.2,133.13,133.12,14.02428608]
[1765236637332,0.2,133.13,133.12,30.33315008]
[1765236637534,0.2,133.13,133.12,19.83655293]
[1765236637728,0.2,133.13,133.12,28.64649785]
[1765236638049,0.2,133.15,133.14,16.308864]
[1765236638342,0.2,133.17,133.14,30.36113085]
[1765236638512,0.2,133.17,133.15,8.21032669]
[1765236639042,0.2,133.17,133.16,6.51226685]
[1765236639342,0.2,133.19,133.18,16.308864]
[1765236639636,0.2,133.19,133.18,24.548864]
[1765236639845,0.2,133.19,133.18,31.06113085]
[1765236640513,0.2,133.19,133.18,38.56976578]
[1765236640928,0.2,133.24,133.18,63.15361995]
[1765236641240,0.2,133.24,133.22,5.81226685]
[1765236641407,0.2,133.24,133.23,8.24]
[1765236642535,8.36525367,133.24,133.23,8.24]
[1765236642758,8.36525367,133.24,133.15,38.55163348]
[1765236642759,8.80994492,133.23,133.15,18.77461757]
[1765236642927,5.81226685,133.22,133.17,5.81226685]
[1765236643135,14.62221177,133.2,133.15,5.81226685]
[1765236643445,14.62221177,133.2,133.16,8.24]
[1765236643640,0.66,133.19,133.16,8.24]
[1765236644449,0.66,133.21,133.18,5.81226685]
[1765236644742,13.31921077,133.21,133.19,8.24]
[1765236644946,0.66,133.2,133.19,8.24]
[1765236645123,15.28221177,133.2,133.19,8.24]
[1765236645939,0.66,133.2,133.19,8.24]
[1765236646143,8.80994492,133.19,133.07,0.75148418]
[1765236646353,5.81226685,133.14,133.09,5.81226685]
[1765236646561,7.50976269,133.16,133.12,5.81226685]
[1765236646849,8.16976269,133.16,133.13,8.22]
[1765236647061,8.16976269,133.16,133.13,14.03226685]
[1765236647062,0.66,133.16,133.13,14.03226685]
[1765236647231,7.50928862,133.17,133.13,14.03226685]
[1765236647422,0.66,133.16,133.13,8.22]
[1765236647621,14.62221177,133.15,133.13,8.22]
[1765236647813,5.81226685,133.14,133.13,8.22]
[1765236648019,6.47226685,133.14,133.13,8.22]
[1765236648218,0.66,133.14,133.13,8.22]
[1765236648417,26.28228554,133.17,133.13,8.22]
[1765236648418,32.75455239,133.17,133.13,8.22]
[1765236648655,0.66,133.16,133.13,8.22]
[1765236648840,8.16976544,133.16,133.13,8.22]
[1765236649151,0.66,133.15,133.13,8.22]
[1765236649592,6.47226685,133.15,133.13,8.22]
[1765236649754,0.66,133.15,133.13,8.22]
[1765236649928,0.66,133.14,133.13,8.22]
[1765236650325,0.66,133.16,133.13,8.22]
[1765236650540,0.66,133.15,133.13,8.22]
[1765236651251,24.58427619,133.18,133.13,14.03226685]
[1765236651550,8.21937484,133.17,133.13,14.03226685]
[1765236651729,8.21937484,133.17,133.13,21.54371307]
[1765236651924,0.71,133.16,133.13,21.54371307]
[1765236652633,0.71,133.16,133.13,8.22]
[1765236652949,15.33221177,133.16,133.13,8.22]
[1765236653351,8.22032669,133.15,133.13,8.22]
[1765236654071,16.308864,133.19,133.14,6.46226685]
[1765236654243,16.308864,133.19,133.17,5.81226685]
[1765236654438,16.308864,133.19,133.18,8.22]
[1765236654439,32.62688009,133.19,133.18,8.22]
[1765236654641,48.39937996,133.19,133.16,8.22]
[1765236654835,23.81693517,133.19,133.16,8.22]
[1765236655141,8.21807117,133.19,133.16,14.03226685]
[1765236656248,0.71,133.19,133.16,14.03226685]
[1765236656445,7.50816846,133.19,133.16,14.03226685]
[1765236656740,0.71,133.18,133.13,5.81226685]
[1765236656944,0.71,133.18,133.14,8.22]
[1765236657537,7.50919876,133.17,133.14,8.22]
[1765236658252,8.21919876,133.17,133.14,14.03226685]
[1765236658456,7.50919876,133.17,133.14,14.03226685]
[1765236658657,0.71,133.19,133.16,5.81226685]
[1765236658841,0.71,133.19,133.17,14.03226685]
[1765236659849,8.21819632,133.19,133.17,8.22]
[1765236660441,0.71,133.19,133.17,8.22]
[1765236660950,7.50769148,133.2,133.17,8.22]
[1765236661140,8.18769148,133.2,133.17,17.2711859]
[1765236661765,8.18651745,133.22,133.18,9.0511859]
[1765236661946,8.18651745,133.22,133.19,9.0511859]
[1765236662273,8.18651745,133.22,133.2,8.22]
[1765236662444,0.68,133.21,133.2,8.22]
[1765236663142,8.18591973,133.23,133.2,17.2711859]
[1765236663348,0.68,133.23,133.2,8.22]
[1765236663663,0.2,133.24,133.21,9.0511859]
[1765236663971,0.2,133.24,133.22,9.0511859]
[1765236664155,0.2,133.24,133.23,8.22]
[1765236665267,8.80994492,133.23,133.14,0.71]
[1765236665440,9.0511859,133.21,133.16,24.78091027]
[1765236665644,9.0511859,133.21,133.16,17.2711859]
[1765236665851,0.68,133.2,133.16,17.9811859]
[1765236666254,8.18601761,133.23,133.19,9.0511859]
[1765236666454,16.55720351,133.23,133.2,8.22]
[1765236666666,9.7311859,133.22,133.2,8.22]
[1765236667168,0.68,133.21,133.2,8.22]
[1765236667749,8.18694392,133.21,133.2,8.22]
[1765236670038,17.23812982,133.21,133.18,8.22]
[1765236670242,0.68,133.2,133.18,8.22]
[1765236671869,8.18655547,133.22,133.19,9.0511859]
[1765236672094,18.54113082,133.21,133.16,9.0511859]
[1765236672244,18.54113082,133.21,133.17,8.22]
[1765236672539,0.68,133.2,133.17,8.22]
[1765236673161,17.86113082,133.19,133.17,8.22]
[1765236673550,0.68,133.18,133.17,8.22]
[1765236674053,8.18863493,133.18,133.17,8.22]
[1765236674256,7.50863493,133.18,133.17,8.22]
[1765236675258,8.18863493,133.18,133.17,8.22]
[1765236684177,8.1765924,133.22,133.17,17.9811859]
[1765236684350,8.1765924,133.22,133.19,9.0511859]